bitfinex/quotes_ETHUSD_20250219
["timestamp","ask_amount","ask_price","bid_price","bid_amount"]
[1740008846247,5.29885484,2719.4,2718.6,4.46176]
[1740008846536,0.8034,2719.0,2718.2,1.0484]
[1740008846744,4.126069,2718.9,2718.2,1.0484]
[1740008847072,4.126069,2718.9,2718.3,3.67876]
[1740008847073,0.448109,2718.9,2718.3,3.67876]
[1740008847238,0.448109,2718.9,2718.2,0.7834]
[1740008847441,4.126069,2718.9,2718.3,0.265]
[1740008847610,4.48165,2718.7,2718.3,0.265]
[1740008847803,5.29885484,2718.6,2718.3,0.265]
[1740008848501,5.29885484,2718.6,2718.1,0.005]
[1740008848706,5.29885484,2718.6,2718.1,0.27]
[1740008848916,3.67854,2718.5,2718.1,0.27]
[1740008849941,3.67854,2718.5,2718.2,0.73933257]
[1740008850141,5.02444448,2718.5,2718.1,0.27]
[1740008850361,0.7899,2718.4,2718.1,0.005]
[1740008850850,5.29885484,2718.3,2718.1,0.005]
[1740008851207,8.97763484,2718.3,2718.1,0.005]
[1740008851402,3.6789,2718.2,2718.1,0.005]
[1740008851628,10.89973737,2718.2,2718.1,0.005]
[1740008851835,13.89973737,2718.2,2718.1,0.005]
[1740008852036,10.22083737,2718.2,2718.1,0.005]
[1740008852237,7.22083737,2718.2,2718.1,0.005]
[1740008852652,10.89973737,2718.2,2718.1,0.005]
[1740008854049,7.22083737,2718.2,2718.1,0.005]
[1740008855236,10.89973737,2718.2,2718.1,0.005]
[1740008857271,6.08615484,2718.2,2718.1,0.005]
[1740008857443,5.29885484,2718.2,2718.1,0.005]
[1740008857968,5.29885484,2718.2,2718.1,3.68404]
[1740008858678,5.29885484,2718.2,2718.1,0.005]
[1740008864656,6.13125484,2718.2,2718.1,0.005]
[1740008864861,6.74438032,2718.2,2718.1,0.005]
[1740008865898,10.42328032,2718.2,2718.1,0.005]
[1740008867301,6.74438032,2718.2,2718.1,0.005]
[1740008867604,10.42328032,2718.2,2718.1,0.005]
[1740008869303,13.37678032,2718.2,2718.1,0.005]
[1740008872708,13.92678032,2718.2,2718.1,0.005]
[1740008876323,9.69788032,2718.2,2718.1,0.005]
[1740008876540,12.76365484,2718.2,2718.1,0.005]
[1740008880129,9.08475484,2718.2,2718.1,0.005]
[1740008880339,12.76365484,2718.2,2718.1,0.005]
[1740008880631,8.29885484,2718.2,2718.1,0.005]
[1740008880796,11.97775484,2718.2,2718.1,0.005]
[1740008881001,13.62257132,2718.2,2718.1,0.005]
[1740008883547,9.94367132,2718.2,2718.1,0.005]
[1740008884899,13.62257132,2718.2,2718.1,0.005]
[1740008886353,5.29885484,2718.2,2718.1,3.68404]
[1740008887126,5.29885484,2718.2,2718.1,3.94904]
[1740008887329,5.29885484,2718.2,2718.1,4.69924]
[1740008887660,5.29885484,2718.2,2718.1,5.44478581]
[1740008887891,5.29885484,2718.2,2718.1,6.70529111]
[1740008888420,8.97639484,2719.3,2718.6,3.67833]
[1740008888652,8.97644484,2719.2,2718.7,0.7502]
[1740008888853,5.29885484,2719.2,2718.7,0.7502]
[1740008889466,3.67772,2719.1,2718.7,0.7502]
[1740008890179,8.97646484,2719.2,2718.7,0.7502]
[1740008891551,8.97659484,2719.1,2718.7,0.7502]
[1740008892680,8.97659484,2719.1,2718.7,1.0152]
[1740008897489,5.29885484,2719.0,2718.7,1.0152]
[1740008897786,8.97669484,2719.0,2718.7,1.0152]
[1740008898206,5.29885484,2719.0,2718.7,0.7502]
[1740008898411,5.29885484,2719.0,2718.4,4.40280497]
[1740008898412,9.87436132,2719.0,2718.4,1.52566497]
[1740008898591,3.67822,2718.7,2718.4,0.8014]
[1740008898910,8.97727484,2718.6,2718.3,0.265]
[1740008899090,5.29885484,2718.5,2718.2,0.265]
[1740008899401,3.67864,2718.4,2718.2,0.265]
[1740008899590,3.67864,2718.4,2718.1,0.005]
[1740008899770,3.67885,2718.3,2718.1,0.005]
[1740008899951,4.490809,2718.2,2718.1,0.005]
[1740008900156,8.97775484,2718.2,2718.1,0.005]
[1740008900508,12.52775484,2718.2,2718.1,0.005]
[1740008902311,5.29885484,2718.2,2718.1,0.005]
[1740008903517,8.97775484,2718.2,2718.1,0.005]
[1740008904016,5.29885484,2718.2,2718.1,0.005]
[1740008904181,8.97775484,2718.2,2718.1,0.005]
[1740008904378,5.29885484,2718.2,2718.1,0.005]
[1740008904576,5.29885484,2718.2,2718.1,0.7595]
[1740008905186,5.29885484,2718.2,2718.1,0.005]
[1740008907309,5.29885484,2718.2,2718.1,4.44574]
[1740008907476,5.29885484,2718.2,2718.1,4.890314]
[1740008907678,5.29885484,2718.2,2718.1,0.7667]
[1740008908077,5.29885484,2718.2,2718.1,0.005]
[1740008908695,8.97775484,2718.2,2718.1,0.005]
[1740008908907,11.97775484,2718.2,2718.1,0.005]
[1740008909142,8.29885484,2718.2,2718.1,0.005]
[1740008912268,9.94472432,2718.2,2718.1,0.005]
[1740008913244,13.62362432,2718.2,2718.1,0.005]
[1740008914937,14.42072432,2718.2,2718.1,0.005]
[1740008915235,14.97072432,2718.2,2718.1,0.005]
[1740008917713,5.29885484,2718.2,2718.1,0.005]
[1740008918234,5.29885484,2718.2,2718.1,3.68404]
[1740008918587,5.29885484,2718.2,2718.1,4.46734]
[1740008920554,5.29885484,2718.2,2718.1,0.7883]
[1740008920868,5.29885484,2718.2,2718.1,4.46734]
[1740008921050,5.29885484,2718.2,2718.1,5.281984]
[1740008929328,5.29885484,2718.2,2718.1,8.76309124]
[1740008933876,5.29885484,2718.2,2718.1,5.281984]
[1740008936350,5.29885484,2718.9,2718.7,3.67822]
[1740008938072,5.29885484,2718.9,2718.7,3.67814]
[1740008938279,5.29885484,2718.9,2718.8,3.67809]
[1740008940965,5.29885484,2718.9,2718.8,4.43136651]
[1740008947912,5.29885484,2718.9,2718.8,6.04606807]
[1740008953288,5.29885484,2718.9,2718.8,6.22819387]
[1740008953481,5.29885484,2718.9,2718.8,6.04606807]
[1740008954078,5.29885484,2718.9,2718.8,6.31106807]
[1740008954576,5.29885484,2718.9,2718.8,6.04606807]
[1740008954779,5.29885484,2718.9,2718.8,5.56076807]
[1740008955007,5.29885484,2718.9,2718.8,0.265]
[1740008955607,5.29885484,2718.9,2718.7,3.67821]
[1740008955823,5.29885484,2718.9,2718.8,3.67809]
[1740008956991,5.29885484,2718.9,2718.8,4.47929]
[1740008959222,4.84e-06,2719.5,2719.4,3.67728]
[1740008959462,4.84e-06,2719.5,2719.4,4.121838]
[1740008963754,3.0,2720.2,2720.1,3.67633]
[1740008963755,4.84e-06,2720.2,2720.1,3.67633]
[1740008963954,4.84e-06,2720.2,2720.1,3.94133]
[1740008964111,4.84e-06,2720.2,2720.1,4.784528]
[1740008964850,4.84e-06,2720.2,2720.1,1.108198]
[1740008965055,4.84e-06,2720.2,2720.0,0.28215053]
[1740008965213,4.84e-06,2720.2,2719.7,0.73715303]
[1740008965411,0.8038,2720.1,2720.0,0.265]
[1740008968850,0.80380484,2720.1,2720.0,0.265]
[1740008970472,1.18418532,2720.1,2720.0,0.265]
[1740008970667,4.86055532,2720.1,2719.5,3.67707]
[1740008970830,4.86055532,2720.1,2719.8,0.265]
[1740008971276,4.86055532,2720.1,2719.6,0.73742629]
[1740008971566,3.67658484,2720.0,2719.7,0.265]
[1740008971730,0.8071,2719.8,2719.7,0.265]
[1740008972126,4.16264037,2720.0,2719.7,0.265]
[1740008972127,4.84e-06,2720.0,2719.7,0.265]
[1740008972355,0.78130484,2720.0,2719.7,0.265]
[1740008974372,4.45778484,2720.0,2719.7,0.265]
[1740008974571,0.78130484,2720.0,2719.7,0.265]
[1740008977880,4.84e-06,2720.0,2719.7,0.94648728]
[1740008982175,4.84e-06,2720.0,2719.7,0.265]
[1740008983192,0.7724,2719.9,2719.7,0.265]
[1740008984288,0.7724,2719.9,2719.5,0.98732717]
[1740008986572,0.7724,2719.9,2719.5,0.72232717]
[1740008986793,0.8156,2719.7,2719.2,3.9551149]
[1740008987080,0.8156,2719.7,2719.4,0.265]
[1740008988103,4.49248,2719.7,2719.3,0.73593917]
[1740008988301,3.67702,2719.6,2719.0,3.67772]
[1740008988605,0.8156,2719.5,2719.2,0.265]
[1740008988776,4.84e-06,2719.4,2719.2,0.265]
[1740008990579,4.84e-06,2719.4,2719.1,1.00882082]
[1740008995203,3.67728484,2719.4,2719.1,1.00882082]
[1740008995624,4.84e-06,2719.3,2719.1,1.00882082]
[1740008996306,4.84e-06,2719.3,2719.1,0.74382082]
[1740008999018,4.84e-06,2719.3,2719.2,3.67755]
[1740008999813,4.84e-06,2719.3,2719.2,7.15865724]
[1740009000134,4.84e-06,2719.9,2719.5,7.35412]
[1740009000343,4.84e-06,2719.9,2719.5,8.165262]
[1740009000631,4.84e-06,2719.9,2719.6,3.67699]
[1740009000839,3.67574,2720.6,2719.5,4.488182]
[1740009000840,0.72261904,2721.5,2720.2,0.2]
[1740009000993,0.72261904,2721.5,2721.1,3.48110724]
[1740009001189,0.72261904,2721.5,2720.3,7.97516724]
[1740009001190,1.42532769,2721.5,2720.8,3.67537]
[1740009001416,7.01117948,2721.4,2720.7,3.67542]
[1740009001687,0.84365072,2721.3,2721.2,3.67484]
[1740009001948,5.36,2721.4,2721.2,3.67484]
[1740009002951,5.36,2721.4,2721.2,4.40585816]
[1740009003575,9.03389,2722.0,2721.2,4.40585816]
[1740009003855,5.36,2722.0,2721.5,3.67435]
[1740009004161,3.58886,2721.9,2721.5,3.67435]
[1740009005118,5.36,2722.0,2721.6,3.67429]
[1740009007255,5.36,2722.0,2721.8,3.67402]
[1740009007451,0.5286,2722.4,2722.0,3.67375]
[1740009008339,0.5286,2722.4,2721.4,4.48653]
[1740009008567,3.67357,2722.2,2721.4,4.48648]
[1740009008767,3.367357,2722.1,2721.4,4.48648]
[1740009008982,3.367357,2722.1,2721.4,8.16097]
[1740009009153,3.367357,2722.1,2721.5,3.67443]
[1740009010187,3.367357,2722.1,2721.6,3.6743]
[1740009010381,7.041017,2722.1,2721.4,4.48648]
[1740009010558,0.5286,2721.9,2721.3,0.268]
[1740009010884,0.5286,2721.9,2721.2,4.40577816]
[1740009011086,0.5286,2721.9,2721.0,3.67505]
[1740009011087,9.03415,2721.8,2721.0,3.94305]
[1740009011444,3.67425,2721.7,2721.0,3.94305]
[1740009011649,1.27084,2721.6,2721.0,3.94305]
[1740009012492,1.27084,2721.6,2721.1,0.72329335]
[1740009012694,5.36,2721.5,2721.1,0.72329335]
[1740009013787,0.5286,2721.4,2721.1,0.72329335]
[1740009014087,5.36,2721.5,2721.1,0.72329335]
[1740009014890,5.36,2721.5,2721.1,4.39825335]
[1740009015951,5.36,2721.5,2721.1,0.72329335]
[1740009016147,5.36,2721.5,2721.4,3.67457]
[1740009016352,5.36,2721.9,2721.5,3.67443]
[1740009016562,5.36,2722.0,2721.5,3.67443]
[1740009016766,5.36,2722.0,2721.6,3.67425]
[1740009017497,5.36,2722.0,2721.5,3.67436]
[1740009017857,10.237213,2722.0,2721.3,4.50623]
[1740009018047,4.20252,2721.9,2721.3,0.8316]
[1740009018258,4.20252,2721.9,2721.2,3.67484]
[1740009018661,4.20252,2721.9,2721.1,5.20277335]
[1740009018862,0.5286,2721.6,2721.2,0.269]
[1740009021109,0.5286,2721.6,2721.2,3.94377]
[1740009021610,0.5286,2721.6,2721.2,0.269]
[1740009022291,5.36,2721.5,2721.2,0.269]
[1740009026116,5.36,2721.5,2721.2,3.94381]
[1740009028269,5.36,2721.5,2721.2,0.269]
[1740009029229,5.36,2721.5,2721.2,0.61208953]
[1740009030712,5.36,2721.5,2721.3,0.34308953]
[1740009031413,5.36,2721.5,2721.3,0.56474909]
[1740009032514,5.36,2721.5,2721.4,0.22165956]
[1740009032700,5.36,2721.5,2721.4,0.56474909]
[1740009034519,5.5096,2721.5,2721.4,0.56474909]
[1740009037522,10.155291,2721.5,2721.4,0.56474909]
[1740009037728,6.480851,2721.5,2721.4,0.56474909]
[1740009038019,6.55846155,2721.5,2721.4,0.56474909]
[1740009038784,10.23290155,2721.5,2721.4,0.56474909]
[1740009038986,10.76150155,2721.5,2721.4,0.56474909]
[1740009039403,13.76150155,2721.5,2721.4,0.56474909]
[1740009039583,13.76150155,2721.5,2721.4,0.22165956]
[1740009040184,3.67491,2721.2,2720.9,0.22165956]
[1740009040428,5.43698191,2721.1,2720.9,0.22165956]
[1740009040995,9.64056191,2721.1,2720.9,0.22165956]
[1740009042343,5.96558191,2721.1,2720.9,0.22165956]
[1740009042521,9.64056191,2721.1,2721.0,0.34464689]
[1740009042697,5.96558191,2721.1,2721.0,0.34464689]
[1740009046674,5.96558191,2721.1,2720.7,0.74265752]
[1740009047034,5.43698191,2721.1,2720.7,0.74265752]
[1740009047235,9.11207191,2721.1,2720.7,0.74265752]
[1740009048058,9.11207191,2721.1,2720.8,0.34426003]
[1740009048391,5.43698191,2721.1,2720.8,0.34426003]
[1740009049678,5.43698191,2721.1,2720.9,0.34426003]
[1740009051083,5.43698191,2721.1,2721.0,0.34426003]
[1740009051280,5.43698191,2721.1,2721.0,1.10166003]
[1740009051449,5.43698191,2721.1,2721.0,4.77677003]
[1740009051657,5.43698191,2721.1,2721.0,5.25444703]
[1740009051853,5.36,2721.1,2721.0,5.25444703]
[1740009052074,5.36,2721.4,2721.1,3.67495]
[1740009052993,0.07238572,2721.3,2721.1,3.67495]
[1740009053600,0.07238572,2721.3,2721.2,0.34426003]
[1740009057930,5.43238572,2721.3,2721.2,0.34426003]
[1740009061017,5.43238572,2721.3,2721.2,4.01910003]
[1740009061416,5.43238572,2721.3,2721.2,0.34426003]
[1740009063869,10.03273929,2721.3,2721.2,0.34426003]
[1740009065162,3.67491,2721.2,2721.0,0.34426003]
[1740009065362,5.36,2721.1,2721.0,0.34426003]
[1740009065663,9.10658095,2721.1,2721.0,0.34426003]
[1740009065861,10.4772944,2721.1,2721.0,0.34426003]
[1740009066872,6.8023144,2721.1,2720.9,0.266]
[1740009067525,5.43160095,2721.1,2720.9,0.266]
[1740009068559,9.10671095,2721.1,2720.9,0.266]
[1740009068867,0.5286,2721.0,2720.9,0.266]
[1740009069070,4.27530306,2721.0,2720.7,0.75088061]
[1740009069365,4.27530306,2721.0,2720.4,0.7759]
[1740009069567,3.67547,2720.8,2720.4,0.265]
[1740009069935,5.43119222,2720.7,2720.5,0.7759]
[1740009070226,5.43119222,2720.7,2720.6,3.67565]
[1740009070674,5.36,2720.7,2720.5,4.99694411]
[1740009071200,0.07098987,2720.6,2720.5,4.99694411]
[1740009071359,5.43098987,2720.6,2720.5,4.99694411]
[1740009073086,5.43098987,2720.6,2720.5,5.3411113]
[1740009079662,5.36,2721.4,2720.6,3.67565]
[1740009079867,5.36,2721.4,2721.3,3.67471]
[1740009080104,5.5096,2721.5,2721.3,3.67471]
[1740009080264,5.5096,2721.5,2721.2,1.091]
[1740009082770,0.06870372,2721.4,2721.2,1.091]
[1740009083912,0.06870372,2721.4,2721.3,0.34416719]
[1740009084966,5.19714109,2721.4,2721.3,0.34416719]
[1740009086907,5.19714109,2721.4,2721.2,0.265]
[1740009088721,3.67471,2721.3,2721.2,0.265]
[1740009088877,3.74359828,2721.3,2721.2,0.265]
[1740009089225,3.74359828,2721.3,2720.9,0.7376325]
[1740009089517,7.34989,2721.2,2721.0,0.265]
[1740009089761,7.41876864,2721.2,2721.0,0.265]
[1740009090315,3.67498,2721.1,2720.9,0.7376325]
[1740009090516,0.5286,2721.0,2720.9,0.7376325]
[1740009090726,5.95746066,2721.0,2720.9,0.7376325]
[1740009091218,5.95746066,2721.0,2720.7,0.265]
[1740009091425,9.63259066,2721.0,2720.7,0.265]
[1740009092519,3.67529,2720.9,2720.8,0.34431352]
[1740009092685,3.74401486,2720.9,2720.8,0.34431352]
[1740009094211,5.07478935,2720.9,2720.8,0.34431352]
[1740009095137,3.67543,2720.8,2720.6,0.34431352]
[1740009095434,0.06856327,2720.7,2720.6,0.34431352]
[1740009095636,3.67543,2720.8,2720.6,0.34431352]
[1740009095796,3.74408327,2720.7,2720.6,0.34431352]
[1740009095994,5.0146346,2720.7,2720.6,0.34431352]
[1740009096731,10.3746346,2720.7,2720.5,0.34431352]
[1740009096939,9.63268327,2720.7,2720.5,0.34431352]
[1740009098356,9.63268327,2720.7,2720.4,0.265]
[1740009099135,3.67574,2720.6,2720.4,0.265]
[1740009099322,5.36,2720.5,2720.1,0.8043]
[1740009099525,5.42840164,2720.5,2720.1,0.8043]
[1740009099824,3.67593,2720.4,2720.2,0.34410327]
[1740009100027,0.59698587,2720.3,2720.2,0.34410327]
[1740009100211,4.27304587,2720.3,2720.2,0.34410327]
[1740009101741,9.63304587,2720.3,2720.2,0.34410327]
[1740009101949,3.67633,2720.1,2720.0,0.34410327]
[1740009102308,3.74380589,2720.1,2720.0,0.34410327]
[1740009102940,0.06747589,2720.1,2720.0,0.34410327]
[1740009103342,3.74380589,2720.1,2719.8,0.265]
[1740009104246,3.67648,2720.0,2719.8,0.265]
[1740009104442,0.06746011,2719.9,2719.8,0.265]
[1740009104656,5.42746011,2719.9,2719.8,0.265]
[1740009105206,5.42746011,2719.9,2719.8,5.24880067]
[1740009105831,5.36,2719.9,2719.8,5.24880067]
[1740009106416,5.36,2719.9,2719.8,5.59290394]
[1740009108451,5.36,2720.6,2719.9,0.8048]
[1740009108676,5.36,2720.6,2720.1,3.67632]
[1740009108848,5.36,2720.6,2720.1,4.492092]
[1740009109177,9.03573,2720.6,2720.1,0.815772]
[1740009109487,5.36,2720.6,2720.1,0.815772]
[1740009109849,5.36,2720.6,2720.1,4.492102]
[1740009110064,5.36,2720.6,2720.1,0.815772]
[1740009110739,5.36,2720.6,2720.3,0.8048]
[1740009111874,9.03566,2720.6,2720.2,0.8277298]
[1740009112177,9.03566,2720.6,2720.2,0.48362653]
[1740009112488,7.88033,2720.5,2720.1,0.265]
[1740009112773,0.59608462,2720.5,2720.1,0.265]
[1740009112978,5.42748462,2720.5,2720.2,3.67617]
[1740009113180,5.42748462,2720.5,2720.3,3.67606]
[1740009113339,5.42748462,2720.5,2720.4,0.815703]
[1740009115155,5.42748462,2720.5,2720.4,0.3435785]
[1740009118761,9.10327462,2720.5,2720.4,0.3435785]
[1740009119267,4.20488,2720.2,2720.0,0.265]
[1740009119821,0.06742529,2720.1,2720.0,0.265]
[1740009120798,3.67609,2720.3,2720.0,0.265]
[1740009121003,0.06742529,2720.1,2720.0,0.265]
[1740009121203,3.67609,2720.3,2720.0,0.265]
[1740009121411,0.06742529,2720.1,2720.0,0.265]
[1740009121568,0.5286,2720.4,2720.0,0.265]
[1740009121908,8.36,2720.5,2720.0,1.49786472]
[1740009122083,0.06744106,2720.3,2720.0,5.17433472]
[1740009122433,12.03591,2720.5,2720.0,1.49786472]
[1740009122605,0.0673776,2720.2,2720.0,1.0307]
[1740009122808,3.67593,2720.4,2720.0,1.0307]
[1740009122965,0.06736971,2720.1,2720.0,1.0307]
[1740009123161,3.67593,2720.4,2720.0,1.0307]
[1740009123362,0.06736971,2720.1,2720.0,1.0307]
[1740009123577,5.8886,2720.3,2720.0,0.265]
[1740009123778,0.06736971,2720.1,2720.0,0.265]
[1740009124015,5.8886,2720.3,2720.0,0.265]
[1740009124219,0.06736971,2720.1,2720.0,0.265]
[1740009124371,5.8886,2720.3,2720.0,0.265]
[1740009124571,0.06736971,2720.1,2720.0,0.265]
[1740009124804,3.67622,2720.2,2719.8,0.72993721]
[1740009125113,0.06736971,2720.1,2719.9,0.265]
[1740009126464,3.74372971,2720.1,2719.9,0.265]
[1740009127395,3.67647,2720.0,2719.9,0.265]
[1740009127611,9.03647,2720.0,2719.8,0.265]
[1740009127806,10.3820533,2720.0,2719.8,0.265]
[1740009128009,6.7055833,2720.0,2719.8,0.265]
[1740009128218,5.42756333,2720.0,2719.8,0.265]
[1740009129085,9.10412333,2720.0,2719.7,0.75034246]
[1740009129287,0.5286,2719.9,2719.7,0.75034246]
[1740009129502,0.59605817,2719.9,2719.7,0.75034246]
[1740009132419,5.95605817,2719.9,2719.7,0.75034246]
[1740009133115,9.63266817,2719.9,2719.7,0.75034246]
[1740009133680,3.67674,2719.8,2719.7,0.75034246]
[1740009133884,3.74399571,2719.8,2719.6,0.265]
[1740009138224,5.36,2719.7,2719.6,0.265]
[1740009138519,5.42724782,2719.7,2719.6,0.265]
[1740009142236,5.42724782,2719.7,2719.4,0.73432136]
[1740009142531,5.42724782,2719.7,2719.4,0.99932136]
[1740009144338,5.42724782,2719.7,2719.4,0.73432136]
[1740009144536,3.67707,2719.6,2719.4,0.73432136]
[1740009144696,3.74413813,2719.6,2719.3,0.265]
[1740009144891,3.67722,2719.5,2719.0,0.7923]
[1740009145093,3.67749,2719.3,2719.0,0.265]
[1740009145427,0.5286,2719.1,2719.0,0.265]
[1740009145794,4.27310711,2719.1,2719.0,0.265]
[1740009146472,4.27310711,2719.1,2718.5,4.47079]
[1740009146675,9.63310711,2719.1,2718.8,0.265]
[1740009146871,5.42682711,2719.1,2719.0,3.67782]
[1740009147177,5.42682711,2719.1,2719.0,4.072102]
[1740009147329,5.42682711,2719.1,2719.0,0.394282]
[1740009147641,5.42682711,2719.1,2718.9,4.48065]
[1740009147843,5.42682711,2719.1,2718.9,8.15853]
[1740009148147,5.42682711,2719.1,2718.9,4.48058]
[1740009148648,5.42682711,2719.1,2718.9,4.48053]
[1740009149142,5.42682711,2719.1,2718.9,8.1584]
[1740009149341,5.42682711,2719.1,2719.0,0.84234]
[1740009151333,5.42682711,2719.1,2718.9,4.48053]
[1740009151536,5.42682711,2719.1,2718.9,0.8027]
[1740009153163,9.10451711,2719.1,2718.7,1.52475924]
[1740009153332,9.10451711,2719.1,2718.9,0.265]
[1740009156038,3.67789,2719.0,2718.7,0.74815924]
[1740009156262,0.5286,2718.9,2718.7,0.265]
[1740009156537,4.2703199,2718.9,2718.7,0.265]
[1740009156776,13.3083999,2718.9,2718.7,0.265]
[1740009156948,3.67809,2718.8,2718.3,0.7941]
[1740009157147,0.063742,2718.8,2718.6,0.265]
[1740009158873,3.741832,2718.8,2718.6,0.265]
[1740009160335,0.063742,2718.8,2718.6,0.265]
[1740009161986,9.03822,2718.7,2718.5,0.73861731]
[1740009162182,5.42353939,2718.7,2718.6,0.265]
[1740009163200,9.10175939,2718.7,2718.3,1.54767683]
[1740009163346,9.10175939,2718.7,2718.4,0.265]
[1740009163982,5.42353939,2718.7,2718.4,0.265]
[1740009164384,9.10176939,2718.7,2718.4,0.265]
[1740009165711,0.5286,2718.5,2718.3,0.75357683]
[1740009165915,5.8886,2718.5,2718.2,0.265]
[1740009166117,0.06322806,2718.4,2718.2,0.265]
[1740009167092,0.06322806,2718.4,2718.2,1.00984587]
[1740009167817,0.06322806,2718.4,2718.3,0.7892]
[1740009168223,0.06322806,2718.4,2718.3,4.46796]
[1740009168533,0.06054177,2718.4,2718.3,0.7892]
[1740009170298,0.06054177,2718.4,2718.3,7.95621705]
[1740009170489,0.06054177,2718.4,2718.3,7.91761705]
[1740009170697,0.06054177,2718.4,2718.3,9.2256832]
[1740009171111,5.36,2719.1,2718.3,9.2256832]
[1740009171321,5.36,2719.1,2718.6,4.50318]
[1740009171632,5.36,2719.1,2718.7,3.67822]
[1740009174257,5.36,2719.1,2718.7,7.35637]
[1740009174626,5.36,2719.1,2718.7,3.67815]
[1740009175153,5.36,2719.1,2718.8,0.75471002]
[1740009176117,0.0606982,2719.0,2718.8,0.75471002]
[1740009176857,5.4206982,2719.0,2718.8,0.75471002]
[1740009181982,5.4206982,2719.0,2718.7,0.265]
[1740009182512,0.5286,2718.9,2718.4,0.8022]
[1740009182687,3.67809,2718.8,2718.7,0.265]
[1740009182988,9.09900556,2718.8,2718.6,0.265]
[1740009183190,5.42091556,2718.8,2718.3,3.67875]
[1740009183389,5.42091556,2718.8,2718.5,0.265]
[1740009186062,5.42091556,2718.8,2718.2,4.4811]
[1740009186266,3.67823,2718.7,2718.3,0.265]
[1740009186442,9.09902556,2718.8,2718.2,4.4811]
[1740009186645,0.05861729,2718.6,2718.3,0.265]
[1740009186871,0.05862518,2718.7,2718.3,3.94375]
[1740009187074,0.05860939,2718.5,2718.3,3.94375]
[1740009187256,5.36,2718.5,2718.3,3.94375]
[1740009187461,0.0586015,2718.4,2718.3,3.94375]
[1740009188917,0.0586015,2718.4,2718.3,0.265]
[1740009190396,0.0586015,2718.4,2718.3,3.94376]
[1740009192444,0.0586015,2718.4,2718.3,0.265]
[1740009193294,0.0586015,2718.4,2718.3,3.94376]
[1740009193703,5.36,2718.5,2718.3,3.94376]
[1740009194040,0.05860372,2718.4,2718.3,3.94376]
[1740009194631,0.05860372,2718.4,2718.3,0.265]
[1740009196344,0.05860372,2718.4,2718.3,3.94376]
[1740009197640,0.05860372,2718.4,2718.3,0.265]
[1740009197841,0.05860372,2718.4,2718.2,5.20229733]
[1740009198145,0.05860372,2718.4,2718.3,0.265]
[1740009199846,0.05860372,2718.4,2718.3,3.94376]
[1740009205351,0.05860372,2718.4,2718.3,0.265]
[1740009205949,0.05860372,2718.4,2718.3,3.94376]
[1740009207456,0.05860372,2718.4,2718.3,5.02801663]
[1740009207662,0.05860372,2718.4,2718.3,7.53727559]
[1740009207956,5.36,2718.5,2718.3,6.71957559]
[1740009208162,5.36,2718.5,2718.4,4.49633]
[1740009208962,5.41853512,2718.5,2718.4,4.49633]
[1740009209256,5.41853512,2718.5,2718.4,6.05792529]
[1740009209461,0.05853512,2718.5,2718.4,6.05792529]
[1740009209958,5.36,2719.1,2718.6,3.67824]
[1740009211367,5.36,2719.1,2718.7,3.67821]
[1740009213681,5.36,2719.1,2719.0,3.67782]
[1740009213971,5.36,2719.5,2719.0,5.61434056]
[1740009214126,5.36,2719.5,2719.4,4.44758]
[1740009214326,5.36,2719.8,2719.5,3.67708]
[1740009214737,5.36,2719.8,2719.4,0.7703]
[1740009214958,9.62561,2719.8,2719.1,0.265]
[1740009215269,0.5286,2719.6,2719.1,3.9426]
[1740009215971,0.5286,2719.6,2719.1,3.6776]
[1740009216174,0.5286,2719.6,2719.2,0.265]
[1740009216839,0.5286,2719.6,2719.3,0.265]
[1740009217871,0.05287293,2719.5,2719.3,0.265]
[1740009218022,0.05287293,2719.5,2719.0,0.72025405]
[1740009218339,0.5286,2719.3,2719.1,0.265]
[1740009218755,0.05285147,2719.2,2719.1,0.265]
[1740009219467,0.5286,2719.3,2719.1,0.265]
[1740009219766,0.05285147,2719.2,2719.1,0.265]
[1740009219930,0.5286,2719.3,2719.1,0.265]
[1740009220355,0.05285147,2719.2,2719.1,0.265]
[1740009220665,0.5286,2719.3,2719.1,0.265]
[1740009220980,0.05285147,2719.2,2719.1,0.265]
[1740009221127,0.5286,2719.3,2719.1,0.265]
[1740009221357,0.05285147,2719.2,2719.1,0.265]
[1740009221556,0.5286,2719.3,2719.1,0.265]
[1740009222000,0.05285147,2719.2,2719.1,0.265]
[1740009222166,0.5286,2719.3,2719.1,0.265]
[1740009222377,0.05285147,2719.2,2719.1,0.265]
[1740009222596,0.5286,2719.3,2719.1,0.265]
[1740009222788,0.05285147,2719.2,2719.1,0.265]
[1740009222987,0.5286,2719.3,2719.1,0.265]
[1740009223291,0.05285147,2719.2,2719.1,0.265]
[1740009223700,5.162611,2719.3,2719.1,0.265]
[1740009223881,0.0526009,2719.2,2719.1,0.265]
[1740009224287,5.162611,2719.3,2719.1,0.265]
[1740009224486,0.0526009,2719.2,2719.1,0.265]
[1740009224800,5.162611,2719.3,2719.1,0.265]
[1740009225010,0.0526009,2719.2,2719.1,0.265]
[1740009225297,5.162611,2719.3,2719.1,0.265]
[1740009225600,0.0526009,2719.2,2719.1,0.265]
[1740009225993,5.162611,2719.3,2719.1,0.265]
[1740009226207,0.0526009,2719.2,2719.1,0.265]
[1740009226563,5.162611,2719.3,2719.1,0.265]
[1740009226796,0.0526009,2719.2,2719.1,0.265]
[1740009227002,4.20604,2719.3,2719.1,0.265]
[1740009227625,0.0526009,2719.2,2718.9,0.265]
[1740009227960,7.88355,2719.3,2718.9,0.265]
[1740009228458,0.0526009,2719.2,2718.9,0.265]
[1740009228869,4.20604,2719.3,2718.9,0.265]
[1740009229067,0.05273922,2719.1,2718.9,0.265]
[1740009229316,4.20604,2719.3,2718.9,0.265]
[1740009229519,0.05273133,2719.0,2718.9,0.265]